bitfinex/quotes_SOLUSD_20230904
["timestamp","ask_amount","ask_price","bid_price","bid_amount"]
[1693835403802,7.964,19.587,19.58,0.796]
[1693835404103,33.695,19.587,19.579,2.1123768]
[1693835404305,33.695,19.587,19.578,2.9083768]
[1693835404507,33.695,19.587,19.578,22.9083768]
[1693835404703,33.695,19.587,19.578,22.1123768]
[1693835405205,33.695,19.587,19.578,2.9083768]
[1693835407597,33.695,19.587,19.578,2.1123768]
[1693835407795,33.695,19.587,19.577,2.1123768]
[1693835407998,33.695,19.587,19.574,2.9083768]
[1693835408294,96.8237,19.586,19.574,2.9083768]
[1693835408494,89.874,19.583,19.574,2.9083768]
[1693835408898,89.874,19.583,19.574,3.37]
[1693835409607,89.874,19.583,19.573,2.9083768]
[1693835409807,89.874,19.583,19.573,0.796]
[1693835410307,89.874,19.583,19.572,0.797]
[1693835410814,89.874,19.583,19.572,3.372]
[1693835414317,89.874,19.583,19.572,0.797]
[1693835414911,89.874,19.583,19.572,2.9093768]
[1693835416812,89.874,19.583,19.572,2.1123768]
[1693835417605,89.874,19.583,19.572,2.9093768]
[1693835418818,89.874,19.583,19.572,5.4843768]
[1693835419120,89.874,19.583,19.572,3.372]
[1693835419319,89.874,19.583,19.573,2.1123768]
[1693835419520,89.874,19.583,19.573,2.9083768]
[1693835421322,89.874,19.583,19.573,2.1123768]
[1693835421518,89.874,19.583,19.572,2.1123768]
[1693835422410,89.874,19.583,19.572,2.9093768]
[1693835422612,89.874,19.583,19.572,0.797]
[1693835424422,89.874,19.583,19.572,3.372]
[1693835425312,89.874,19.583,19.572,0.797]
[1693835425627,89.874,19.583,19.572,2.9093768]
[1693835426219,89.874,19.583,19.572,5.4843768]
[1693835426430,7.966,19.583,19.576,3.37]
[1693835427216,7.966,19.583,19.576,0.796]
[1693835428708,33.702,19.583,19.576,2.9083768]
[1693835428907,7.966,19.583,19.576,0.796]
[1693835431723,33.702,19.583,19.575,0.796]
[1693835431925,33.702,19.583,19.575,2.9083768]
[1693835432429,33.702,19.583,19.575,0.796]
[1693835432634,33.702,19.583,19.575,2.9083768]
[1693835433535,33.702,19.583,19.575,0.796]
[1693835434838,33.702,19.583,19.573,55.797]
[1693835435134,33.702,19.583,19.574,2.1123768]
[1693835436632,33.702,19.583,19.574,2.9083768]
[1693835438528,33.702,19.583,19.574,2.1123768]
[1693835440944,33.702,19.583,19.574,2.9083768]
[1693835442627,33.702,19.583,19.574,2.1123768]
[1693835442835,33.38,19.58,19.574,2.1123768]
[1693835443041,33.71,19.579,19.572,0.797]
[1693835443544,33.71,19.579,19.572,2.9093768]
[1693835444039,33.71,19.579,19.572,2.1123768]
[1693835444344,7.968,19.579,19.572,2.9093768]
[1693835444841,7.968,19.579,19.572,0.797]
[1693835445036,7.968,19.579,19.572,3.372]
[1693835445240,7.967,19.58,19.572,3.372]
[1693835445448,33.706,19.581,19.572,3.372]
[1693835445624,25.735,19.585,19.573,2.1123768]
[1693835445942,96.8237,19.586,19.576,13.535]
[1693835446132,96.8237,19.586,19.577,2.1123768]
[1693835446339,104.7887,19.586,19.579,3.37]
[1693835446543,104.7887,19.586,19.579,0.796]
[1693835447140,130.5207,19.586,19.578,0.796]
[1693835447346,104.7887,19.586,19.578,3.37]
[1693835448128,104.7887,19.586,19.578,0.796]
[1693835448334,130.5207,19.586,19.578,0.796]
[1693835449639,130.5207,19.586,19.574,2.1123768]
[1693835450146,130.5207,19.586,19.575,3.37]
[1693835450644,130.5207,19.586,19.576,2.1123768]
[1693835451052,130.5207,19.586,19.576,55.0]
[1693835451552,130.5207,19.586,19.575,55.796]
[1693835452635,130.5207,19.586,19.576,2.1123768]
[1693835453136,130.5207,19.586,19.575,55.796]
[1693835453349,130.5207,19.586,19.575,0.796]
[1693835453535,130.5207,19.586,19.576,55.0]
[1693835457946,130.5207,19.586,19.577,2.1123768]
[1693835459444,130.5207,19.586,19.575,2.9083768]
[1693835459651,130.5207,19.586,19.573,2.1123768]
[1693835459853,130.5207,19.586,19.572,0.797]
[1693835460056,130.5207,19.586,19.573,2.1123768]
[1693835460449,130.5207,19.586,19.573,2.9093768]
[1693835460749,130.5207,19.586,19.573,2.9083768]
[1693835461354,130.5207,19.586,19.573,2.1123768]
[1693835461948,89.898,19.578,19.571,2.1123768]
[1693835462156,191.542,19.578,19.571,2.1123768]
[1693835462350,191.542,19.578,19.562,5.623]
[1693835462535,191.542,19.578,19.563,2.1123768]
[1693835463152,211.982843,19.578,19.565,2.9093768]
[1693835464558,211.982843,19.578,19.565,57.9093768]
[1693835465266,211.982843,19.578,19.564,0.797]
[1693835465436,89.92,19.573,19.564,2.1123768]
[1693835465641,89.92,19.573,19.563,2.1123768]
[1693835466148,89.92,19.573,19.561,2.9093768]
[1693835466655,89.92,19.573,19.562,2.1123768]
[1693835466853,89.92,19.573,19.562,2.9093768]
[1693835467243,89.92,19.573,19.562,5.4853768]
[1693835467657,7.971,19.569,19.562,5.4853768]
[1693835469246,7.971,19.569,19.562,2.9093768]
[1693835471143,94.8128,19.572,19.562,2.9093768]
[1693835471340,7.971,19.571,19.562,11.1083768]
[1693835471554,7.971,19.571,19.564,2.9093768]
[1693835474161,7.971,19.571,19.564,5.4853768]
[1693835477347,7.971,19.571,19.564,2.9093768]
[1693835478357,33.723,19.571,19.564,2.9093768]
[1693835479763,33.723,19.571,19.564,2.1123768]
[1693835479955,33.723,19.571,19.561,4.6883768]
[1693835480156,33.723,19.571,19.563,0.797]
[1693835480465,33.723,19.571,19.564,2.1123768]
[1693835480664,33.38,19.57,19.564,2.1123768]
[1693835480859,211.636,19.569,19.559,2.1123768]
[1693835481450,211.636,19.569,19.558,15.68216658]
[1693835482166,211.636,19.569,19.551,2.1123768]
[1693835482359,211.636,19.569,19.554,3.374]
[1693835482667,211.636,19.569,19.555,2.1123768]
[1693835482969,211.636,19.569,19.555,2.9093768]
[1693835483454,211.636,19.569,19.555,3.374]
[1693835483967,211.636,19.569,19.556,2.1123768]
[1693835484463,211.636,19.569,19.554,4.6893768]
[1693835484851,211.636,19.569,19.556,2.1123768]
[1693835485262,211.636,19.569,19.556,2.9093768]
[1693835485459,211.636,19.569,19.556,5.4863768]
[1693835485661,211.636,19.569,19.558,2.1123768]
[1693835485860,211.636,19.569,19.558,0.797]
[1693835486069,211.636,19.569,19.559,2.1123768]
[1693835486256,211.636,19.569,19.559,2.9093768]
[1693835486457,109.941,19.569,19.559,57.9093768]
[1693835486854,109.941,19.569,19.559,2.9093768]
[1693835487054,109.941,19.569,19.559,5.4853768]
[1693835487652,109.941,19.569,19.559,2.9093768]
[1693835489274,109.941,19.569,19.559,2.1123768]
[1693835489666,109.941,19.569,19.559,2.9093768]
[1693835490364,89.941,19.569,19.559,2.9093768]
[1693835490559,33.732,19.566,19.559,5.4853768]
[1693835490766,33.732,19.566,19.561,2.1123768]
[1693835490967,33.732,19.566,19.56,55.797]
[1693835492377,7.973,19.566,19.561,2.1123768]
[1693835492580,7.973,19.566,19.561,2.9093768]
[1693835493279,7.973,19.566,19.561,0.797]
[1693835493657,250.0,19.59,19.561,3.373]
[1693835493866,7.971,19.57,19.562,2.1123768]
[1693835494065,7.971,19.57,19.566,0.797]
[1693835494776,7.97,19.573,19.566,13.542]
[1693835494962,7.969,19.574,19.566,13.542]
[1693835495162,7.969,19.574,19.566,3.372]
[1693835495362,96.8227,19.578,19.566,58.372]
[1693835495562,153.0077,19.578,19.567,2.1123768]
[1693835495778,7.968,19.577,19.57,3.372]
[1693835495965,178.7507,19.578,19.57,58.372]
[1693835495966,104.7907,19.578,19.57,58.372]
[1693835496168,33.38,19.58,19.57,58.372]
[1693835496364,57.112377,19.584,19.571,2.1123768]
[1693835496563,33.703,19.582,19.574,0.796]
[1693835496976,33.703,19.582,19.572,2.575]
[1693835497478,33.703,19.582,19.568,2.1123768]
[1693835497674,33.703,19.582,19.568,77.1123768]
[1693835502783,33.703,19.582,19.572,3.372]
[1693835509080,97.7536,19.583,19.572,3.372]
[1693835509286,97.7536,19.583,19.573,2.1123768]
[1693835509486,97.7536,19.583,19.576,8.989]
[1693835509686,97.7536,19.583,19.577,55.0]
[1693835509984,105.7196,19.583,19.578,3.37]
[1693835510187,97.7536,19.583,19.578,3.37]
[1693835510390,105.7196,19.583,19.578,3.37]
[1693835510598,131.4556,19.583,19.56,110.4401422]
[1693835510793,131.4556,19.583,19.571,10.168]
[1693835511087,131.4556,19.583,19.572,57.1123768]
[1693835511275,131.4556,19.583,19.573,3.37]
[1693835511985,131.4556,19.583,19.574,2.1123768]
[1693835512186,131.4556,19.583,19.576,3.37]
[1693835514277,131.4556,19.583,19.574,2.1123768]
[1693835514278,233.0736,19.583,19.574,2.1123768]
[1693835514476,233.0736,19.583,19.575,0.796]
[1693835515089,233.0736,19.583,19.575,3.37]
[1693835515293,233.0736,19.583,19.575,58.37]
[1693835515679,233.0736,19.583,19.575,3.37]
[1693835517094,233.0736,19.583,19.575,0.796]
[1693835517687,233.0736,19.583,19.575,2.9083768]
[1693835517987,233.0736,19.583,19.575,5.4823768]
[1693835518292,233.0736,19.583,19.575,3.37]
[1693835518792,233.0736,19.583,19.575,0.796]
[1693835518990,233.0736,19.583,19.575,2.9083768]
[1693835519193,233.0736,19.583,19.575,0.796]
[1693835519891,233.0736,19.583,19.575,3.37]
[1693835520793,233.0736,19.583,19.575,0.796]
[1693835524995,233.0736,19.583,19.575,2.9083768]
[1693835527197,233.0736,19.583,19.575,0.796]
[1693835527902,233.0736,19.583,19.575,3.37]
[1693835528597,131.4556,19.583,19.575,3.37]
[1693835528896,233.0736,19.583,19.575,0.796]
[1693835529081,233.0736,19.583,19.575,2.9083768]
[1693835529281,233.0736,19.583,19.575,0.796]
[1693835529801,233.0736,19.583,19.575,2.9083768]
[1693835532392,233.0736,19.583,19.575,2.1123768]
[1693835533296,233.0736,19.583,19.575,2.9083768]
[1693835533777,233.0736,19.583,19.575,2.1123768]
[1693835533981,233.0736,19.583,19.574,55.796]
[1693835534177,233.0736,19.583,19.575,2.1123768]
[1693835534780,233.0736,19.583,19.574,55.796]
[1693835536096,233.0736,19.583,19.575,2.1123768]
[1693835536678,233.0736,19.583,19.572,2.1123768]
[1693835536885,233.0736,19.583,19.57,0.797]
[1693835537182,33.712,19.577,19.57,3.372]
[1693835537381,33.712,19.577,19.57,5.4843768]
[1693835537581,33.712,19.577,19.57,3.372]
[1693835538702,7.968,19.577,19.57,3.372]
[1693835538999,7.968,19.577,19.571,2.1123768]
[1693835539201,7.968,19.577,19.572,0.797]
[1693835539502,33.712,19.577,19.572,0.797]
[1693835540404,7.968,19.577,19.572,0.797]
[1693835541199,7.968,19.577,19.572,3.372]
[1693835542586,33.712,19.577,19.572,0.797]
[1693835544396,33.712,19.577,19.571,2.575]
[1693835544397,33.712,19.577,19.57,5.62]
[1693835544695,33.712,19.577,19.571,0.797]
[1693835545695,33.712,19.577,19.571,2.9093768]
[1693835547906,33.712,19.577,19.571,2.1123768]
[1693835548093,33.712,19.577,19.568,0.797]
[1693835548295,33.712,19.577,19.561,2.1123768]
[1693835548491,54.151635,19.577,19.564,0.797]
[1693835548701,97.4737,19.576,19.564,0.797]
[1693835548905,191.593,19.573,19.564,0.797]
[1693835549403,191.593,19.573,19.564,2.1123768]
[1693835549605,191.593,19.573,19.562,0.797]
[1693835550011,191.593,19.573,19.562,2.9093768]
[1693835550617,191.593,19.573,19.562,5.4853768]
[1693835551106,89.921,19.573,19.562,5.4853768]
[1693835551493,89.921,19.573,19.565,0.797]
[1693835551997,89.921,19.573,19.565,2.1123768]
[1693835553015,89.921,19.573,19.564,55.797]
[1693835553310,89.921,19.573,19.565,2.1123768]
[1693835553510,89.921,19.573,19.564,0.797]
[1693835553511,89.921,19.573,19.564,57.9093768]
[1693835555003,89.921,19.573,19.564,60.4853768]
[1693835555311,33.72,19.573,19.564,60.4853768]
[1693835555516,7.97,19.573,19.564,60.4853768]
[1693835557104,33.719,19.573,19.564,60.4853768]
[1693835559808,7.97,19.573,19.564,60.4853768]
[1693835572316,33.719,19.573,19.564,60.4853768]
[1693835581530,7.97,19.573,19.564,60.4853768]
[1693835581836,7.969,19.574,19.564,60.4853768]
[1693835582031,7.97,19.573,19.564,60.4853768]
[1693835582532,33.719,19.573,19.564,57.1123768]
[1693835582735,33.719,19.573,19.563,55.797]
[1693835582934,33.719,19.573,19.564,2.1123768]
[1693835584828,33.719,19.573,19.564,2.9093768]
[1693835586027,33.719,19.573,19.564,5.4853768]
[1693835586235,33.719,19.573,19.565,55.0]
[1693835586438,33.719,19.573,19.566,2.9093768]
[1693835586632,33.719,19.573,19.566,0.797]
[1693835586846,33.719,19.573,19.566,2.9093768]
[1693835587141,33.719,19.573,19.565,55.797]
[1693835587438,33.719,19.573,19.566,57.1123768]
[1693835587627,33.719,19.573,19.566,2.1123768]
[1693835587828,33.719,19.573,19.565,57.9093768]
[1693835588026,33.719,19.573,19.565,2.9093768]
[1693835588228,33.719,19.573,19.565,57.9093768]
[1693835591422,33.719,19.573,19.565,57.1123768]
[1693835591826,33.719,19.573,19.565,55.0]
[1693835594825,33.719,19.573,19.565,55.797]
[1693835595637,33.719,19.573,19.565,3.373]
[1693835595838,33.719,19.573,19.566,2.1123768]
[1693835596038,33.719,19.573,19.566,0.797]
[1693835596845,33.719,19.573,19.566,2.9093768]
[1693835597537,33.719,19.573,19.566,0.797]
[1693835597741,33.719,19.573,19.566,2.9093768]
[1693835597942,33.719,19.573,19.566,0.797]
[1693835599645,33.719,19.573,19.566,2.9093768]
[1693835599843,33.719,19.573,19.566,2.1123768]
[1693835600046,33.719,19.573,19.562,2.1123768]
[1693835600255,33.719,19.573,19.563,0.797]
[1693835600549,33.719,19.573,19.563,2.9093768]
[1693835600846,33.719,19.573,19.563,2.1123768]
[1693835601644,33.719,19.573,19.563,2.9093768]
[1693835605252,33.719,19.573,19.563,5.4853768]
[1693835615051,33.719,19.573,19.563,3.373]
[1693835615466,33.719,19.573,19.563,58.373]
[1693835615655,33.719,19.573,19.564,2.1123768]
[1693835615855,33.719,19.573,19.565,0.797]
[1693835616154,33.719,19.573,19.565,3.373]
[1693835623862,33.719,19.573,19.565,0.797]
[1693835624969,33.719,19.573,19.559,0.797]
[1693835625168,33.38,19.57,19.56,2.1123768]
[1693835625372,89.946,19.567,19.56,2.1123768]
[1693835626163,89.946,19.567,19.56,2.9093768]
[1693835626360,7.972,19.567,19.56,5.4853768]
[1693835627476,33.728,19.568,19.56,5.4853768]
[1693835629075,30.877295,19.57,19.56,5.4853768]
[1693835629272,7.972,19.568,19.56,2.1123768]
[1693835629464,33.728,19.568,19.559,59.31145474]
[1693835629670,33.728,19.568,19.56,0.797]
[1693835629969,33.728,19.568,19.56,7.68445474]
[1693835630575,7.972,19.568,19.56,7.68445474]
[1693835630777,7.972,19.568,19.561,55.0]
[1693835630972,7.972,19.568,19.563,0.797]
[1693835631971,33.728,19.568,19.562,0.797]
[1693835632769,33.728,19.568,19.562,3.29501046]
[1693835633983,33.728,19.568,19.562,0.797]
[1693835634174,33.728,19.568,19.562,3.27319847]
[1693835634480,33.728,19.568,19.562,0.797]
[1693835635478,33.728,19.568,19.56,0.797]
[1693835635678,33.728,19.568,19.559,4.00765149]
[1693835635871,33.728,19.568,19.56,0.797]
[1693835636084,33.728,19.568,19.56,7.38065149]
[1693835640787,7.972,19.568,19.56,7.38065149]
[1693835643373,7.972,19.569,19.56,7.38065149]
[1693835645797,33.727,19.569,19.56,7.38065149]
[1693835646396,7.972,19.569,19.56,7.38065149]
[1693835646594,120.0695,19.571,19.56,7.38065149]
[1693835646776,7.971,19.569,19.564,0.797]
[1693835646983,7.971,19.569,19.563,2.576]
[1693835646984,7.971,19.569,19.563,0.797]
[1693835647484,33.726,19.569,19.563,0.797]
[1693835661101,33.726,19.569,19.562,0.797]
[1693835664312,33.726,19.569,19.562,3.373]
[1693835665914,94.3175,19.571,19.563,4.00765149]
[1693835666099,94.3175,19.571,19.565,19.165]
[1693835666300,94.3175,19.571,19.566,4.00765149]
[1693835666601,94.3175,19.571,19.567,8.993]
[1693835666800,7.97,19.574,19.568,4.00765149]
[1693835667002,7.97,19.574,19.568,0.797]
[1693835667202,33.718,19.574,19.565,5.622]
[1693835667504,33.718,19.574,19.566,5.09643429]
[1693835667704,33.718,19.574,19.566,4.29943429]
[1693835668004,33.718,19.574,19.565,5.09643429]
[1693835669712,33.718,19.574,19.565,4.29943429]
[1693835669913,33.718,19.574,19.565,0.797]
[1693835671519,33.718,19.574,19.564,5.09643429]
[1693835672119,33.718,19.574,19.564,7.67243429]
[1693835678921,33.718,19.574,19.56,7.52061036]
[1693835679119,33.718,19.574,19.562,5.74161036]
[1693835679322,33.718,19.574,19.562,4.94461036]
[1693835679622,33.718,19.574,19.562,5.74161036]
[1693835680214,33.718,19.574,19.562,8.31761036]
[1693835682613,33.718,19.574,19.564,4.94461036]
[1693835682818,33.718,19.574,19.564,5.74161036]
[1693835683416,33.718,19.574,19.564,8.31761036]
[1693835686031,33.718,19.574,19.564,3.373]
[1693835687732,33.718,19.574,19.564,0.797]
[1693835688328,33.718,19.574,19.564,4.94461036]
[1693835688632,33.718,19.574,19.564,5.74161036]
[1693835689014,33.718,19.574,19.564,4.94461036]
[1693835689219,33.718,19.574,19.563,5.74161036]
[1693835689527,33.718,19.574,19.564,55.0]
[1693835689728,33.718,19.574,19.565,4.94461036]
[1693835694234,33.718,19.574,19.563,7.52061036]
[1693835694432,33.718,19.574,19.563,5.74161036]
[1693835698644,33.718,19.574,19.563,4.94461036]
[1693835698840,33.718,19.574,19.562,5.74161036]
[1693835699641,33.718,19.574,19.562,4.94461036]
[1693835700142,33.718,19.574,19.561,4.94461036]
[1693835701031,33.718,19.574,19.561,5.74161036]
[1693835701847,33.718,19.574,19.561,4.94461036]
[1693835702732,33.718,19.574,19.561,5.74161036]
[1693835705035,33.718,19.574,19.561,4.94461036]
[1693835705631,33.718,19.574,19.56,4.94461036]
[1693835706044,33.718,19.574,19.559,4.94461036]
[1693835706241,33.718,19.574,19.559,25.74161036]
[1693835706744,191.65,19.567,19.559,24.94461036]
[1693835706954,191.65,19.567,19.558,4.94461036]
[1693835707248,191.65,19.567,19.56,4.94461036]
[1693835707249,89.947,19.567,19.56,4.94461036]
[1693835710138,135.071,19.57,19.56,8.31761036]
[1693835710139,41.351,19.57,19.56,8.31761036]
[1693835710448,33.727,19.569,19.56,5.74161036]
[1693835711138,33.727,19.569,19.56,4.94461036]
[1693835711947,33.727,19.569,19.56,5.74161036]
[1693835712337,33.727,19.569,19.56,8.31761036]
[1693835713146,33.727,19.569,19.56,5.74161036]
[1693835715156,33.727,19.569,19.56,4.94461036]
[1693835715538,33.727,19.569,19.56,5.74161036]
[1693835716759,33.38,19.57,19.56,4.94461036]
[1693835716935,33.727,19.569,19.56,5.74161036]
[1693835723649,33.727,19.569,19.56,8.31761036]
[1693835724350,33.727,19.569,19.56,5.74161036]
[1693835725560,33.727,19.569,19.56,8.31761036]
[1693835731964,33.727,19.569,19.561,55.0]
[1693835732142,33.727,19.569,19.562,5.74161036]
[1693835733161,7.972,19.569,19.562,5.74161036]
[1693835736558,7.972,19.569,19.562,4.94461036]
[1693835736761,33.727,19.569,19.562,4.94461036]
[1693835745165,33.727,19.569,19.558,4.94461036]
[1693835745354,33.727,19.569,19.559,55.0]
[1693835745556,132.8242,19.569,19.56,4.94461036]
[1693835746247,132.8242,19.569,19.558,4.94461036]
[1693835746453,132.8242,19.569,19.56,1.595]
[1693835746663,132.8242,19.569,19.561,4.94461036]
[1693835747061,153.273217,19.569,19.561,4.94461036]
[1693835747247,153.273217,19.569,19.56,1.595]
[1693835747653,153.273217,19.569,19.561,4.94461036]
[1693835747853,153.273217,19.569,19.56,4.94461036]
[1693835748370,153.273217,19.569,19.56,6.53961036]
[1693835748557,153.273217,19.569,19.56,4.94461036]
[1693835755569,153.273217,19.569,19.56,6.53961036]
[1693835756275,153.273217,19.569,19.56,4.94461036]
[1693835756779,153.273217,19.569,19.56,6.53961036]
[1693835758866,132.8242,19.569,19.56,6.53961036]
[1693835759062,132.8242,19.569,19.56,11.69261036]
[1693835759880,132.8242,19.569,19.56,6.53961036]
[1693835760772,132.8242,19.569,19.56,11.69261036]
[1693835763583,132.8242,19.569,19.56,6.53961036]
[1693835767877,132.8242,19.569,19.56,11.69261036]
[1693835770982,107.0692,19.569,19.562,4.94461036]
[1693835771190,107.0692,19.569,19.562,6.53861036]
[1693835771488,132.8242,19.569,19.562,4.94461036]
[1693835773172,132.8242,19.569,19.562,1.594]
[1693835773772,132.8242,19.569,19.563,4.94461036]
[1693835775775,107.0692,19.569,19.563,4.94461036]
[1693835775976,107.0692,19.569,19.561,4.94461036]
[1693835776175,132.8242,19.569,19.562,1.594]
[1693835776695,132.8242,19.569,19.563,4.94461036]
[1693835780597,132.8242,19.569,19.562,1.594]
[1693835782684,132.8242,19.569,19.563,4.94461036]
[1693835784092,132.8242,19.569,19.562,4.94461036]
[1693835784596,132.8242,19.569,19.562,6.53861036]
[1693835785787,132.8242,19.569,19.562,4.94461036]
[1693835786292,132.8242,19.569,19.561,4.94461036]
[1693835788081,132.8242,19.569,19.56,6.53961036]
[1693835788286,132.8242,19.569,19.561,1.594]
[1693835788591,132.8242,19.569,19.562,4.94461036]
[1693835788793,132.8242,19.569,19.561,1.594]
[1693835789090,132.8242,19.569,19.562,4.94461036]
[1693835790986,132.8242,19.569,19.561,4.94461036]
[1693835791383,20.0,19.568,19.559,4.94461036]
[1693835791589,191.663,19.566,19.555,4.94461036]
[1693835791789,191.663,19.566,19.554,4.94461036]
[1693835793379,212.117788,19.566,19.554,4.94461036]
[1693835796096,191.711,19.561,19.55,4.94461036]
[1693835797017,191.711,19.561,19.552,4.94461036]
[1693835797393,191.711,19.561,19.551,4.94461036]
[1693835798400,191.711,19.561,19.551,6.53961036]
[1693835798607,33.38,19.56,19.551,4.94461036]
[1693835798806,33.38,19.56,19.543,4.94461036]
[1693835798807,191.742,19.558,19.543,4.94461036]
[1693835799101,191.742,19.558,19.541,1.596]
[1693835799102,90.012,19.553,19.542,6.54061036]
[1693835799288,90.012,19.553,19.542,4.94461036]
[1693835799488,96.8189,19.552,19.542,4.94461036]
[1693835799703,33.76,19.549,19.542,4.94461036]
[1693835801290,33.76,19.549,19.54,4.94461036]
[1693835801489,33.76,19.549,19.539,1.596]
[1693835801703,33.76,19.549,19.54,4.94461036]
[1693835801905,33.76,19.549,19.54,11.69861036]
[1693835803597,7.979,19.549,19.54,11.69861036]
[1693835805690,33.76,19.549,19.54,11.69861036]
[1693835806311,33.76,19.549,19.54,6.54061036]
[1693835806995,33.76,19.549,19.54,4.94461036]
[1693835807195,33.76,19.549,19.539,1.596]
[1693835807400,7.981,19.546,19.539,1.596]
[1693835808008,33.766,19.546,19.538,5.159]
[1693835808215,33.766,19.546,19.537,6.54061036]
[1693835808393,33.766,19.546,19.539,4.94461036]
[1693835808594,33.766,19.546,19.537,6.54061036]
[1693835809808,33.766,19.546,19.538,55.0]
[1693835809996,33.766,19.546,19.539,4.94461036]
[1693835810196,33.766,19.546,19.539,6.54061036]
[1693835810507,7.981,19.546,19.539,1.596]
[1693835810814,7.981,19.546,19.539,6.754]
[1693835811195,7.981,19.546,19.54,2.58568172]
[1693835811423,33.766,19.546,19.54,2.58568172]
[1693835811721,7.981,19.546,19.539,4.46410928]
[1693835813094,33.766,19.546,19.539,4.46410928]
[1693835814212,33.766,19.546,19.539,2.86810928]
[1693835816512,33.766,19.546,19.539,4.46410928]
[1693835816707,15.60153452,19.557,19.54,33.38]
[1693835816911,33.757,19.551,19.543,1.596]
[1693835817110,33.757,19.551,19.544,4.94461036]
[1693835817615,33.757,19.551,19.544,11.69761036]
[1693835817820,7.979,19.551,19.544,11.69761036]
[1693835818811,33.757,19.551,19.544,6.54061036]
[1693835819123,33.757,19.551,19.544,1.596]
[1693835819302,33.757,19.551,19.544,56.596]
[1693835819502,33.757,19.551,19.545,4.94461036]
[1693835819806,33.757,19.551,19.546,1.596]
[1693835821121,33.757,19.551,19.545,1.596]
[1693835821416,33.757,19.551,19.545,4.07041524]
[1693835822217,33.757,19.551,19.545,9.22741524]
[1693835822618,33.757,19.551,19.545,2.47441524]
[1693835822823,33.757,19.551,19.544,1.596]
[1693835823704,33.757,19.551,19.539,20.368]
[1693835823705,90.035,19.548,19.539,4.94461036]
[1693835824018,90.035,19.548,19.539,1.596]
[1693835824223,90.035,19.548,19.538,4.94461036]
[1693835824608,90.035,19.548,19.537,6.54061036]
[1693835825113,90.035,19.548,19.539,4.94461036]
[1693835826215,90.035,19.548,19.537,4.94461036]
[1693835826417,90.035,19.548,19.534,1.597]
[1693835826620,90.035,19.548,19.535,4.94461036]
[1693835826814,90.035,19.548,19.536,1.597]
[1693835827419,90.035,19.548,19.535,6.54161036]
[1693835828417,90.035,19.548,19.535,4.94461036]
[1693835828616,90.035,19.548,19.535,6.54161036]
[1693835830923,90.035,19.548,19.535,4.94461036]
[1693835831122,90.035,19.548,19.534,6.54161036]
[1693835831326,90.035,19.548,19.536,4.94461036]
[1693835831708,90.035,19.548,19.531,4.94461036]
[1693835831903,90.082,19.538,19.529,4.94461036]
[1693835832210,90.082,19.538,19.529,6.54161036]
[1693835832515,90.082,19.538,19.529,4.94461036]
[1693835833521,90.082,19.538,19.525,5.162]
[1693835833728,90.082,19.538,19.526,6.54161036]
[1693835834021,90.099,19.534,19.526,6.54161036]